bitfinex/quotes_BTCUSD_20250614
["timestamp","ask_amount","ask_price","bid_price","bid_amount"]
[1749927711633,0.36533427,105060.0,105050.0,0.54866284]
[1749927712045,0.35581672,105060.0,105050.0,0.54866284]
[1749927712226,0.34911779,105060.0,105050.0,0.54866284]
[1749927712476,0.36533426,105060.0,105050.0,0.54866284]
[1749927712685,0.36533427,105060.0,105050.0,0.54866284]
[1749927713111,0.36533428,105060.0,105050.0,0.54866284]
[1749927713742,0.37485192,105060.0,105050.0,0.54866284]
[1749927714215,0.38436973,105060.0,105050.0,0.54866284]
[1749927714433,0.3776708,105060.0,105050.0,0.54866284]
[1749927715029,0.36815298,105060.0,105050.0,0.54866284]
[1749927715273,0.37485191,105060.0,105050.0,0.54866284]
[1749927715451,0.38436964,105060.0,105050.0,0.54866284]
[1749927715664,0.38436962,105060.0,105050.0,0.54866284]
[1749927715877,0.39670653,105060.0,105050.0,0.54866284]
[1749927716098,0.38718853,105060.0,105050.0,0.54866284]
[1749927716310,0.37767071,105060.0,105050.0,0.54866284]
[1749927716754,0.37767071,105060.0,105050.0,0.38830284]
[1749927716966,0.37767071,105060.0,105050.0,0.54866284]
[1749927717396,0.38718853,105060.0,105050.0,0.54866284]
[1749927718253,0.38718853,105060.0,105050.0,0.38830284]
[1749927718470,0.39670653,105060.0,105050.0,0.54866284]
[1749927718713,0.3776717,105060.0,105050.0,0.53914402]
[1749927718968,0.37767116,105060.0,105050.0,0.53914402]
[1749927719262,0.36815316,105060.0,105050.0,0.53914402]
[1749927719484,0.35863534,105060.0,105050.0,0.53914402]
[1749927719708,0.38718871,105060.0,105050.0,0.53910402]
[1749927719941,0.37767107,105060.0,105050.0,0.53910402]
[1749927720166,0.39670734,105060.0,105050.0,0.53910402]
[1749927720405,0.39670807,105060.0,105050.0,0.53910402]
[1749927720638,0.57755774,105060.0,105050.0,0.35974647]
[1749927720856,0.55852183,105060.0,105050.0,0.53910438]
[1749927721082,0.55852183,105060.0,105050.0,0.54862311]
[1749927721509,0.55852183,105060.0,105050.0,0.38830311]
[1749927721719,0.56522099,105060.0,105050.0,0.54862311]
[1749927721956,0.56522099,105060.0,105050.0,0.53910438]
[1749927722163,0.56522098,105060.0,105050.0,0.54862311]
[1749927722378,0.56522102,105060.0,105050.0,0.54862311]
[1749927722761,0.55852183,105060.0,105050.0,0.54862311]
[1749927722965,0.56522102,105060.0,105050.0,0.54862311]
[1749927723181,0.36815443,105060.0,105050.0,0.55814175]
[1749927723381,0.37485359,105060.0,105050.0,0.55814175]
[1749927723543,0.36815443,105060.0,105050.0,0.55814175]
[1749927723743,0.56522102,105060.0,105050.0,0.54862311]
[1749927724198,0.56522103,105060.0,105050.0,0.54862311]
[1749927724478,0.66137026,105060.0,105050.0,0.52958574]
[1749927724690,0.66137026,105060.0,105050.0,0.53910474]
[1749927724897,0.65467105,105060.0,105050.0,0.53910474]
[1749927725043,0.65185199,105060.0,105050.0,0.0636]
[1749927725250,0.65185199,105060.0,105040.0,0.0624]
[1749927725251,0.53990462,105050.0,105040.0,0.0624]
[1749927725449,0.00952027,105030.0,105020.0,0.28510047]
[1749927725655,0.00952027,105030.0,105020.0,0.54166223]
[1749927725855,0.00952027,105030.0,105020.0,0.60336223]
[1749927726059,0.0190409,105030.0,105020.0,0.44304223]
[1749927726315,0.00952027,105030.0,105020.0,0.60336223]
[1749927726594,0.36855981,105040.0,105030.0,0.28098421]
[1749927726847,0.36855981,105040.0,105030.0,0.37722597]
[1749927727390,0.35903917,105040.0,105030.0,0.38674642]
[1749927727592,0.35903917,105040.0,105030.0,0.54706642]
[1749927727593,0.36855917,105040.0,105030.0,0.54706642]
[1749927727995,0.36817842,105040.0,105030.0,0.54706642]
[1749927728202,0.36817842,105040.0,105030.0,0.56595858]
[1749927728404,0.35865842,105040.0,105030.0,0.56595858]
[1749927728859,0.36817824,105040.0,105030.0,0.56695858]
[1749927729652,0.36817824,105040.0,105030.0,0.40663858]
[1749927729860,0.3491387,105040.0,105030.0,0.56695858]
[1749927730064,0.35865842,105040.0,105030.0,0.55006642]
[1749927730476,0.36817833,105040.0,105030.0,0.55006642]
[1749927730718,0.35865842,105040.0,105030.0,0.55006642]
[1749927732468,0.3491387,105040.0,105030.0,0.55006642]
[1749927732681,0.35865842,105040.0,105030.0,0.55006642]
[1749927733949,0.3491387,105040.0,105030.0,0.55006642]
[1749927734160,0.35865833,105040.0,105030.0,0.55006642]
[1749927734379,0.36817815,105040.0,105030.0,0.55006642]
[1749927736102,0.35865833,105040.0,105030.0,0.55006642]
[1749927736325,0.37769805,105040.0,105030.0,0.45382466]
[1749927736536,0.36817805,105040.0,105030.0,0.29350466]
[1749927736746,0.35865833,105040.0,105030.0,0.45382466]
[1749927736965,0.36817805,105040.0,105030.0,0.45382466]
[1749927737201,0.03807871,105040.0,105030.0,0.45382466]
[1749927737623,0.25924377,105050.0,105040.0,0.20944374]
[1749927737830,0.25254362,105050.0,105040.0,0.27294374]
[1749927738505,0.25254362,105050.0,105040.0,0.26342383]
[1749927738708,0.25254362,105050.0,105040.0,0.07302018]
[1749927738918,0.24302471,105050.0,105040.0,0.0635]
[1749927739547,3.96026509,105040.0,105030.0,0.50622395]
[1749927739801,0.01903982,105040.0,105030.0,0.36494512]
[1749927740010,0.01903982,105040.0,105030.0,0.29200475]
[1749927740213,0.03807881,105040.0,105030.0,0.29200475]
[1749927740869,0.0475989,105040.0,105030.0,0.29400475]
[1749927741104,0.03807945,105040.0,105030.0,0.29400475]
[1749927741312,0.03807945,105040.0,105030.0,0.45432475]
[1749927741313,0.02855936,105040.0,105030.0,0.45432475]
[1749927742333,0.02855936,105040.0,105030.0,0.45532475]
[1749927742763,0.01903936,105040.0,105030.0,0.45532475]
[1749927743613,0.02855936,105040.0,105030.0,0.45532475]
[1749927743827,0.01903936,105040.0,105030.0,0.45532475]
[1749927744255,0.00951936,105040.0,105030.0,0.41460331]
[1749927744469,3.993865,105050.0,105040.0,0.28236337]
[1749927744689,0.26876227,105050.0,105040.0,0.28236356]
[1749927744951,0.2430248,105050.0,105040.0,0.27284392]
[1749927745394,0.23350553,105050.0,105040.0,0.0634]
[1749927746031,0.00952,105040.0,105030.0,0.44470331]
[1749927746247,0.21896365,105040.0,105030.0,0.36158453]
[1749927746449,0.20944356,105040.0,105030.0,0.37110525]
[1749927746663,0.01903991,105040.0,105030.0,0.5409457]
[1749927746876,0.01903991,105040.0,105030.0,0.5389457]
[1749927747297,0.01903991,105040.0,105030.0,0.5399457]
[1749927748584,0.01903917,105040.0,105030.0,0.63361854]
[1749927748808,0.01903899,105040.0,105030.0,0.62409755]
[1749927749017,0.02855881,105040.0,105030.0,0.62409755]
[1749927749448,0.01903899,105040.0,105030.0,0.62409755]
[1749927749657,0.00951936,105040.0,105030.0,0.62409755]
[1749927749870,0.0190389,105040.0,105030.0,0.62409755]
[1749927750935,0.00951936,105040.0,105030.0,0.54254507]
[1749927751157,0.0190389,105040.0,105030.0,0.38222507]
[1749927751402,0.00951936,105040.0,105030.0,0.54250507]
[1749927751618,0.02855862,105040.0,105030.0,0.54250507]
[1749927751828,0.23800236,105040.0,105030.0,0.26694277]
[1749927752052,4.50018874,105040.0,105030.0,0.003]
[1749927752266,4.50688944,105040.0,105030.0,0.003]
[1749927752483,4.50688944,105040.0,105030.0,0.2124634]
[1749927752484,4.50688956,105040.0,105030.0,0.2124634]
[1749927752717,0.54946349,105030.0,105020.0,0.19043754]
[1749927752929,0.55900543,105020.0,105010.0,0.28162648]
[1749927753137,0.35904353,105020.0,105010.0,0.30067146]
[1749927753350,4.30978853,105020.0,105010.0,0.29114185]
[1749927753555,4.30978853,105020.0,105010.0,0.27209724]
[1749927753556,4.50022844,105020.0,105010.0,0.27209724]
[1749927753793,4.50693014,105020.0,105010.0,0.28161315]
[1749927754013,0.35904461,105010.0,105000.0,0.26258357]
[1749927754225,0.35904425,105010.0,105000.0,0.36834868]
[1749927754660,0.35904425,105010.0,105000.0,0.52862868]
[1749927754661,0.38761176,105010.0,105000.0,0.52862868]
[1749927755319,0.57806981,105010.0,105000.0,0.25405402]
[1749927755540,0.56483199,105010.0,105000.0,0.21052352]
[1749927755748,4.55007105,105010.0,105000.0,0.21051678]
[1749927755958,4.55007105,105010.0,105000.0,0.1924699]
[1749927755959,4.55007108,105010.0,105000.0,0.1924699]
[1749927756173,4.55007108,105010.0,105000.0,0.19246343]
[1749927756377,4.53384595,105010.0,105000.0,0.001]
[1749927756600,0.54952343,105000.0,104990.0,0.20001348]
[1749927756807,0.55904678,105000.0,104990.0,0.20953774]
[1749927757021,0.55904678,105000.0,104990.0,0.19048339]
[1749927757233,0.01904843,104990.0,104980.0,0.27207682]
[1749927757442,0.01904843,104990.0,104980.0,0.44188235]
[1749927757443,0.01904816,104990.0,104980.0,0.44188235]
[1749927757693,0.01904816,104990.0,104980.0,0.24358238]
[1749927757694,0.55906765,104990.0,104980.0,0.24358238]
[1749927757900,0.55906765,104990.0,104980.0,0.20003791]
[1749927758141,0.55906765,104990.0,104980.0,0.19050782]
[1749927758340,0.54954348,104990.0,104980.0,0.18197782]
[1749927758547,0.40115943,104990.0,104980.0,0.20102824]
[1749927758761,0.01904987,104980.0,104970.0,0.23070469]
[1749927759189,0.61345902,104990.0,104980.0,0.200038]
[1749927759403,0.58052786,104990.0,104980.0,0.24978843]
[1749927759615,0.77102219,104990.0,104980.0,0.0307]
[1749927759832,0.77102219,104990.0,104970.0,0.30577225]
[1749927759833,0.0285754,104980.0,104970.0,0.34599796]
[1749927760039,0.02857531,104980.0,104970.0,0.34599796]
[1749927760259,0.02857531,104980.0,104970.0,0.32694645]
[1749927760524,0.5769269,104980.0,104970.0,0.23070506]
[1749927760736,0.02857821,104970.0,104960.0,0.27088671]
[1749927760953,0.02857821,104970.0,104960.0,0.2893531]
[1749927760954,0.37810465,104970.0,104960.0,0.2893531]
[1749927761170,0.37810455,104970.0,104960.0,0.46872723]
[1749927761385,0.44627656,104970.0,104960.0,0.30840739]
[1749927761608,0.61775513,104970.0,104960.0,0.28994166]
[1749927761833,0.55910956,104970.0,104960.0,0.28041468]
[1749927762050,0.03263379,104990.0,104980.0,0.28048824]
[1749927762263,4.759e-05,104990.0,104980.0,0.53705]
[1749927763827,4.759e-05,104990.0,104980.0,1.21500727]
[1749927764082,4.759e-05,104990.0,104980.0,0.53705]
[1749927764319,4.759e-05,104990.0,104980.0,0.56567]
[1749927764320,0.00304759,104990.0,104980.0,0.56567]
[1749927764549,0.00104759,104990.0,104980.0,0.56567]
[1749927764770,4.759e-05,104990.0,104980.0,0.56567]
[1749927765003,4.759e-05,104990.0,104980.0,0.56767]
[1749927765228,4.759e-05,104990.0,104980.0,0.56967]
[1749927765460,0.53589393,105020.0,105010.0,0.21902565]
[1749927765678,0.38514337,105020.0,105010.0,0.21902565]
[1749927765884,0.57558328,105020.0,105010.0,0.20950339]
[1749927766092,0.38765623,105020.0,105010.0,0.228548]
[1749927766721,0.57809659,105020.0,105010.0,0.21902574]
[1749927766949,0.56857496,105020.0,105010.0,0.20950339]
[1749927767179,0.00952208,105010.0,105000.0,0.43332692]
[1749927767423,0.22854764,105010.0,105000.0,0.52956922]
[1749927767673,0.07090627,105010.0,105000.0,0.53909239]
[1749927767898,0.00952208,105010.0,105000.0,0.37877239]
[1749927768364,0.37358853,105020.0,105010.0,0.25222593]
[1749927768597,0.64357654,105020.0,105010.0,0.20950358]
[1749927769299,0.64357654,105020.0,105010.0,0.21902611]
[1749927769528,0.56402844,105020.0,105010.0,0.22854846]
[1749927769756,0.57355043,105020.0,105010.0,0.22854846]
[1749927770458,0.57855043,105020.0,105010.0,0.22854846]
[1749927770682,0.39111052,105020.0,105010.0,0.23807072]
[1749927770910,0.58155043,105020.0,105010.0,0.23807072]
[1749927771140,0.00952208,105010.0,105000.0,0.35972542]
[1749927771372,0.0285666,105010.0,105000.0,0.36924886]
[1749927771805,0.04761185,105010.0,105000.0,0.36924886]
[1749927772033,0.23807063,105010.0,105000.0,0.3692494]
[1749927772278,0.22854846,105010.0,105000.0,0.37877293]
[1749927772493,0.22854846,105010.0,105000.0,0.20950782]
[1749927772494,0.30975592,105010.0,105000.0,0.20950782]
[1749927772719,0.30023357,105010.0,105000.0,0.20950782]
[1749927773025,0.30023357,105010.0,105000.0,0.21903135]
[1749927773313,0.21902611,105010.0,105000.0,0.21903135]
[1749927773601,0.20398095,105010.0,104990.0,0.24071223]
[1749927773848,0.5590466,105000.0,104990.0,0.27101295]
[1749927774096,0.5590466,105000.0,104990.0,0.25023712]
[1749927774331,0.45995288,105000.0,104990.0,0.25023712]
[1749927774548,0.46947659,105000.0,104990.0,0.2597612]
[1749927774768,0.35904625,105000.0,104990.0,0.2900612]
[1749927775396,0.36856969,105000.0,104990.0,0.2900612]
[1749927775602,0.35904625,105000.0,104990.0,0.2900612]
[1749927776226,0.35904616,105000.0,104990.0,0.2900612]
[1749927776367,0.34,105000.0,104990.0,0.2900612]
[1749927776573,0.34,105000.0,104990.0,0.38630296]
[1749927779657,0.24654975,105020.0,105010.0,0.28022565]
[1749927779658,0.03358839,105020.0,105010.0,0.28022565]
[1749927779865,0.37358839,105020.0,105010.0,0.53678741]
[1749927780741,0.38158839,105020.0,105010.0,0.53678741]
[1749927781358,0.39110966,105020.0,105010.0,0.37646741]
[1749927781766,0.39110966,105020.0,105010.0,0.53674741]
[1749927781767,0.48443382,105020.0,105010.0,0.53674741]
[1749927781974,0.48443373,105020.0,105010.0,0.53674741]
[1749927782390,0.46539029,105020.0,105010.0,0.53674741]
[1749927782623,0.49395527,105020.0,105010.0,0.53674741]
[1749927783727,0.4196741,105020.0,105010.0,0.53674741]
[1749927783947,0.41015247,105020.0,105010.0,0.53674741]
[1749927784467,0.4196741,105020.0,105010.0,0.53674741]
[1749927784979,0.42919591,105020.0,105010.0,0.53674741]
[1749927785743,0.42919591,105020.0,105010.0,0.37646741]
[1749927786017,0.42919591,105020.0,105010.0,0.53674741]
[1749927786508,0.41967401,105020.0,105010.0,0.53674741]
[1749927786763,0.42919573,105020.0,105010.0,0.37646741]
[1749927787022,0.42919627,105020.0,105010.0,0.54626985]
[1749927787517,0.4939559,105020.0,105010.0,0.54626985]
[1749927788256,0.4939559,105020.0,105000.0,0.19998347]
[1749927788257,0.02856733,105010.0,105000.0,0.20950682]
[1749927788530,0.55902538,105010.0,105000.0,0.3686493]
[1749927788781,0.55902538,105010.0,105000.0,0.45173415]
[1749927789315,0.35904461,105010.0,105000.0,0.46125732]
[1749927789553,0.37256724,105010.0,105000.0,0.46125732]
[1749927789805,0.38208996,105010.0,105000.0,0.46125732]
[1749927790050,0.39161277,105010.0,105000.0,0.46125732]
[1749927791235,0.37256724,105010.0,105000.0,0.46125732]
[1749927791454,0.38208996,105010.0,105000.0,0.46125732]
[1749927792587,0.37256724,105010.0,105000.0,0.46125732]
[1749927793005,0.38208996,105010.0,105000.0,0.30097732]
[1749927793232,0.38208996,105010.0,105000.0,0.46125732]
[1749927793644,0.39161277,105010.0,105000.0,0.46125732]
[1749927793855,0.3916135,105010.0,105000.0,0.46125732]
[1749927794055,0.64061866,105010.0,105000.0,0.20950772]
[1749927794267,4.59136366,105010.0,105000.0,0.22855451]
[1749927794471,4.59136366,105010.0,105000.0,0.20950772]
[1749927794687,4.59136366,105010.0,105000.0,0.22855451]
[1749927794910,4.59136366,105010.0,105000.0,0.19807777]
[1749927795114,4.40090561,105010.0,105000.0,0.19807777]
[1749927795320,4.31379016,105010.0,105000.0,0.19807723]
[1749927795532,4.32331297,105010.0,105000.0,0.19807723]
[1749927796015,4.51377102,105010.0,105000.0,0.18855406]
[1749927796241,4.52329392,105010.0,105000.0,0.16950754]
[1749927796452,4.33283587,105010.0,105000.0,0.1790308]
[1749927796872,4.52329392,105010.0,105000.0,0.1790308]
[1749927797075,4.52329392,105010.0,104990.0,0.24191223]
[1749927797076,0.35904643,105000.0,104990.0,0.24191223]
[1749927797290,0.35904607,105000.0,104990.0,0.41171667]
[1749927797499,0.3685696,105000.0,104990.0,0.44311667]
[1749927797709,0.36856942,105000.0,104990.0,0.44311667]
[1749927798129,0.34,105000.0,104990.0,0.44311667]
[1749927798336,0.34,105000.0,104990.0,0.60272134]
[1749927798548,0.34,105000.0,104990.0,0.53935843]
[1749927799459,0.34,105000.0,104990.0,0.53931843]
[1749927799671,0.34952299,105000.0,104990.0,0.53931843]
[1749927799885,0.34,105000.0,104990.0,0.53931843]
[1749927800094,0.34952299,105000.0,104990.0,0.53931843]
[1749927800299,0.40733012,105000.0,104990.0,0.53931843]
[1749927800738,0.39780713,105000.0,104990.0,0.28283667]
[1749927800983,0.39780713,105000.0,104990.0,0.29239209]
[1749927800984,0.42637745,105000.0,104990.0,0.29239209]
[1749927801238,0.61685364,105000.0,104990.0,0.28286801]
[1749927801464,0.42637745,105000.0,104990.0,0.28286801]
[1749927801709,0.36857032,105000.0,104990.0,0.30191626]
[1749927802145,0.55904651,105000.0,104990.0,0.28286801]
[1749927802588,0.55904651,105000.0,104990.0,0.30191644]
[1749927802796,0.56957031,105000.0,104990.0,0.30191644]
[1749927803432,0.36957032,105000.0,104990.0,0.30191644]
[1749927803633,0.57257031,105000.0,104990.0,0.30191644]
[1749927804043,0.62527896,105000.0,104980.0,0.20003745]
[1749927804243,0.36857278,104990.0,104980.0,0.44292824]
[1749927804572,0.36857215,104990.0,104980.0,0.28268824]
[1749927804767,0.35904789,104990.0,104980.0,0.28268824]
[1749927804952,0.37809632,104990.0,104980.0,0.28268824]
[1749927805158,0.38762085,104990.0,104980.0,0.28268824]
[1749927806042,0.37809623,104990.0,104980.0,0.28268824]
[1749927806444,0.38762067,104990.0,104980.0,0.28268824]
[1749927807382,0.3876213,104990.0,104980.0,0.28268824]
[1749927807517,0.35904996,104980.0,104970.0,0.27206736]
[1749927807717,0.36857513,104980.0,104970.0,0.44183325]
[1749927807922,0.39342543,104980.0,104970.0,0.28159325]
[1749927808131,0.37810048,104980.0,104970.0,0.28159325]
[1749927808362,0.35904996,104980.0,104970.0,0.28159325]
[1749927808565,0.36857513,104980.0,104970.0,0.28159325]
[1749927808769,0.36857513,104980.0,104970.0,0.28206988]
[1749927809350,0.37810048,104980.0,104970.0,0.28206988]
[1749927809558,0.02857541,104980.0,104970.0,0.28206988]
[1749927809762,0.01904996,104980.0,104970.0,0.28206988]
[1749927811922,0.00952489,104980.0,104970.0,0.28206988]
[1749927812360,0.34,104990.0,104980.0,0.29071349]
[1749927812567,0.35904789,104990.0,104980.0,0.29071349]
[1749927812771,0.70976353,105000.0,104990.0,0.28116738]
[1749927812979,0.5780934,105000.0,104990.0,0.28116738]
[1749927814219,0.5780934,105000.0,104990.0,0.28067364]
[1749927814449,0.57809322,105000.0,104990.0,0.28067364]
[1749927814769,0.3685696,105000.0,104990.0,0.28067364]
[1749927815105,0.37809313,105000.0,104990.0,0.28067364]
[1749927815299,0.38309313,105000.0,104990.0,0.28067364]
[1749927815549,0.38609313,105000.0,104990.0,0.28067364]
[1749927815989,0.39561675,105000.0,104990.0,0.28067364]
[1749927816848,0.38609313,105000.0,104990.0,0.28067364]
[1749927816967,0.39561675,105000.0,104990.0,0.28067364]
[1749927817777,0.56704705,105000.0,104990.0,0.20001895]
[1749927818003,0.56704705,105000.0,104990.0,0.20954348]
[1749927818448,0.66312576,105000.0,104990.0,0.20954348]
[1749927818661,0.34,104990.0,104980.0,0.44422714]
[1749927819065,0.35904807,104990.0,104980.0,0.28398714]
[1749927819270,0.36857242,104990.0,104980.0,0.28398714]
[1749927819638,0.36857233,104990.0,104980.0,0.28398714]
[1749927819980,0.38109686,104990.0,104980.0,0.28398714]
[1749927820185,0.3906213,104990.0,104980.0,0.28398714]
[1749927820942,0.39062193,104990.0,104980.0,0.27446234]
[1749927821544,0.37257278,104990.0,104980.0,0.27446234]
[1749927821755,0.37257278,104990.0,104970.0,0.44747334]
[1749927821756,0.0190506,104980.0,104970.0,0.30628539]
[1749927821964,0.20956307,104980.0,104970.0,0.42215811]
[1749927822206,0.20956307,104980.0,104970.0,0.44121052]
[1749927822409,0.20956307,104980.0,104970.0,0.29049659]
[1749927822630,0.20956307,104980.0,104970.0,0.07140316]
[1749927822851,0.29006774,104980.0,104970.0,0.06187663]
[1749927823068,0.29006774,104980.0,104970.0,0.00047663]
[1749927823069,4.194983,104980.0,104970.0,0.00047663]
[1749927823280,4.578023,104980.0,104970.0,0.00047663]
[1749927823555,4.80654986,104980.0,104970.0,0.00047663]
[1749927823787,5.12279162,104980.0,104970.0,0.00047663]
[1749927824022,5.21894084,104980.0,104970.0,0.00047663]
[1749927824256,5.21894816,104980.0,104970.0,0.00047663]
[1749927824517,5.22194816,104980.0,104970.0,0.00047663]
[1749927825238,5.21894816,104980.0,104970.0,0.00047663]
[1749927825482,5.22194816,104980.0,104970.0,0.00047663]
[1749927825708,5.22694816,104980.0,104970.0,0.00047663]
[1749927826206,5.22694816,104980.0,104970.0,0.00941293]
[1749927826439,5.22694816,104980.0,104970.0,0.00047663]
[1749927826668,5.19841398,104980.0,104970.0,0.00941308]
[1749927826882,5.22694816,104980.0,104970.0,0.00941336]
[1749927827098,0.22865688,104960.0,104950.0,0.28155015]
[1749927827337,4.33964188,104960.0,104950.0,0.30074888]
[1749927827536,4.33011526,104960.0,104950.0,0.2721653]
[1749927827752,4.33011526,104960.0,104950.0,0.29122117]
[1749927828186,4.42636037,104960.0,104950.0,0.00014304]
[1749927828407,0.00952843,104940.0,104930.0,0.28154414]
[1749927828629,3.96980051,104950.0,104940.0,0.27204332]
[1749927828847,3.96980051,104950.0,104940.0,0.29110082]
[1749927828848,3.97932867,104950.0,104940.0,0.29110082]
[1749927829072,0.00952752,104950.0,104940.0,0.28157111]
[1749927829306,4.14216612,104960.0,104950.0,0.25145087]
[1749927829515,4.14216612,104960.0,104950.0,0.27202316]
[1749927829516,4.34124233,104960.0,104950.0,0.27202316]
[1749927829730,4.34124233,104960.0,104950.0,0.28155105]
[1749927830394,4.33171553,104960.0,104950.0,0.28155105]
[1749927830615,4.33087553,104960.0,104950.0,0.28155105]
[1749927830823,4.33087553,104960.0,104950.0,0.27202316]
[1749927831031,4.33387553,104960.0,104950.0,0.28155105]
[1749927831474,4.33087553,104960.0,104950.0,0.28155105]
[1749927831687,4.33087553,104960.0,104950.0,0.29107876]
[1749927831688,3.950745,104960.0,104950.0,0.29107876]
[1749927831900,3.9602718,104960.0,104950.0,0.29207876]
[1749927832110,3.99774605,104960.0,104950.0,0.29207876]
[1749927832324,3.98821907,104960.0,104950.0,0.29207876]
[1749927832948,3.99774614,104960.0,104950.0,0.29207876]
[1749927833194,4.09389536,104960.0,104950.0,0.29207876]
[1749927833385,3.99526614,104960.0,104950.0,0.29207876]
[1749927833839,4.0047933,104960.0,104950.0,0.29207876]
[1749927834463,3.97621227,104960.0,104950.0,0.29207876]
[1749927835733,4.13705227,104960.0,104950.0,0.29207876]
[1749927836371,4.13662306,104960.0,104950.0,0.29207876]
[1749927837592,4.14160078,104960.0,104950.0,0.29207876]
[1749927840603,0.03292499,104960.0,104950.0,0.341298]
[1749927840867,0.03292499,104960.0,104950.0,0.29207876]
[1749927841100,0.02794727,104960.0,104950.0,0.29207876]
[1749927841319,4.33701376,104970.0,104960.0,0.28472999]
[1749927841560,4.36590806,104970.0,104960.0,0.28472999]
[1749927841811,4.34685601,104970.0,104960.0,0.28472999]
[1749927842040,4.35638181,104970.0,104960.0,0.28472999]
[1749927842458,4.37543377,104970.0,104960.0,0.28472999]
[1749927842884,4.37843377,104970.0,104960.0,0.28472999]
[1749927843126,4.36238181,104970.0,104960.0,0.28472999]
[1749927843844,4.37190788,104970.0,104960.0,0.28444492]
[1749927844088,4.36890788,104970.0,104960.0,0.28444492]
[1749927844332,4.37090788,104970.0,104960.0,0.28444492]
[1749927844542,4.37090788,104970.0,104960.0,0.29425688]
[1749927844758,4.71743413,104970.0,104960.0,0.28473017]
[1749927844958,4.71743413,104970.0,104960.0,0.29425706]
[1749927845103,4.71843413,104970.0,104960.0,0.29425706]
[1749927845572,4.72796129,104970.0,104960.0,0.30378386]
[1749927846645,4.91849191,104970.0,104960.0,0.30378386]
[1749927846847,4.90896611,104970.0,104960.0,0.28473017]
[1749927847277,4.89944004,104970.0,104960.0,0.28473017]
[1749927847718,4.88991379,104970.0,104960.0,0.27520319]
[1749927848486,4.97653667,104970.0,104960.0,0.26567612]
[1749927848714,4.97653667,104970.0,104960.0,0.27520337]
[1749927848941,4.81593667,104970.0,104960.0,0.26567612]
[1749927849139,4.97621667,104970.0,104960.0,0.27520337]
[1749927850128,4.96669014,104970.0,104960.0,0.26567612]
[1749927850451,4.96669014,104970.0,104960.0,0.20960337]
[1749927851015,4.96669014,104970.0,104960.0,0.24040337]
[1749927851586,4.87054092,104970.0,104960.0,0.24993044]
[1749927851790,4.87054092,104970.0,104960.0,0.25174878]
[1749927852003,4.87054092,104970.0,104960.0,0.27080337]
[1749927852576,4.87054092,104970.0,104960.0,0.28033044]
[1749927852819,4.87054092,104970.0,104960.0,0.28985742]
[1749927853014,4.87054092,104970.0,104960.0,0.29938422]
[1749927853015,4.69906271,104970.0,104960.0,0.29938422]
[1749927853157,4.89911977,104970.0,104960.0,0.28033044]
[1749927853362,4.89911977,104970.0,104960.0,0.27080337]
[1749927853363,4.8895937,104970.0,104960.0,0.27080337]
[1749927853564,0.00952771,104950.0,104940.0,0.19058509]
[1749927853763,0.00952752,104950.0,104940.0,0.29635537]
[1749927854054,0.71941035,104960.0,104950.0,0.21915087]
[1749927854285,0.71941035,104960.0,104950.0,0.27102316]
[1749927854511,0.0304708,104970.0,104960.0,0.28052999]
[1749927854738,0.11922687,105010.0,104990.0,0.00952408]
[1749927854950,0.38324,105010.0,105000.0,0.28044651]
[1749927855156,0.04324,105010.0,105000.0,0.28044651]
[1749927856608,0.04821636,105010.0,105000.0,0.28044651]
[1749927857250,0.04821636,105010.0,105000.0,0.35606445]
[1749927857455,0.04821636,105010.0,105000.0,0.42883314]
[1749927857660,0.04821636,105010.0,105000.0,0.35706445]
[1749927858690,0.04821636,105010.0,105000.0,0.45330621]
[1749927859629,0.04821636,105010.0,105000.0,0.61538621]
[1749927860177,0.04821636,105010.0,105000.0,0.53968827]
[1749927860430,0.00497636,105010.0,105000.0,0.53968827]
[1749927860816,0.00497636,105010.0,105000.0,0.53988827]
[1749927862848,0.00497636,105010.0,105000.0,0.61550621]
[1749927865092,0.00497636,105010.0,105000.0,0.45330621]
[1749927865294,0.00497636,105010.0,105000.0,0.61534621]
[1749927866151,0.04817636,105010.0,105000.0,0.61534621]
[1749927868400,0.04817636,105010.0,105000.0,0.45330621]
[1749927868608,0.04817636,105010.0,105000.0,0.61518621]
[1749927870221,0.04817636,105010.0,105000.0,0.53944827]
[1749927870513,0.38817636,105010.0,105000.0,0.37768827]
[1749927870723,0.38817636,105010.0,105000.0,0.27192334]
[1749927870924,0.38817636,105010.0,105000.0,0.22004651]
[1749927870925,0.40722061,105010.0,105000.0,0.22004651]
[1749927871131,0.43578821,105010.0,105000.0,0.22004651]
[1749927871534,0.67317994,105010.0,105000.0,0.2009999]
[1749927871740,0.67317994,105010.0,105000.0,0.001]
[1749927871741,4.79103732,105010.0,105000.0,0.001]
[1749927871916,0.0095239,104990.0,104980.0,0.23183782]
[1749927872157,0.03809677,104990.0,104980.0,0.35665526]
[1749927872549,0.56859182,104990.0,104980.0,0.22861368]
[1749927872773,0.37809749,104990.0,104980.0,0.23813866]
[1749927873400,0.36857287,104990.0,104980.0,0.23813866]
[1749927873552,0.3780974,104990.0,104980.0,0.23813866]
[1749927873767,0.5398174,104990.0,104980.0,0.24113866]
[1749927873989,0.56860243,104990.0,104980.0,0.24113866]
[1749927875211,0.5590779,104990.0,104980.0,0.24313866]
[1749927875438,0.56860243,104990.0,104980.0,0.24313866]
[1749927876252,0.57812705,104990.0,104980.0,0.24313866]
[1749927876412,0.81419216,104990.0,104980.0,0.21456362]
[1749927876620,0.81419216,104990.0,104980.0,0.22408897]
[1749927876960,0.55907862,104990.0,104980.0,0.23361404]
[1749927877091,0.55907862,104990.0,104980.0,0.24313902]
[1749927877708,0.75909766,104990.0,104980.0,0.22408897]
[1749927878036,0.73052407,104990.0,104970.0,0.27148313]
[1749927878257,0.06297061,104980.0,104970.0,0.37729873]
[1749927878828,0.27253359,104980.0,104970.0,0.27153099]
[1749927879046,0.25348344,104980.0,104970.0,0.20010465]
[1749927879247,0.26300906,104980.0,104970.0,0.21915697]
[1749927879484,0.35915828,104980.0,104970.0,0.21915697]
[1749927879912,0.35915828,104980.0,104970.0,0.22115697]
[1749927880771,0.36115828,104980.0,104970.0,0.22115697]
[1749927881208,0.36115828,104980.0,104970.0,0.21915697]
[1749927881445,0.36115828,104980.0,104970.0,0.20962187]
[1749927881446,0.26700906,104980.0,104970.0,0.20962187]
[1749927881689,0.004,104980.0,104970.0,0.28384776]
[1749927881917,0.004,104980.0,104970.0,0.38008952]
[1749927882579,0.002,104980.0,104970.0,0.38008952]
[1749927882802,0.003,104980.0,104970.0,0.54184952]
[1749927883011,0.001,104980.0,104970.0,0.54184952]
[1749927883221,0.001,104980.0,104970.0,1.21598747]
[1749927884299,0.001,104980.0,104970.0,0.57033737]
[1749927884580,0.001,104980.0,104970.0,1.24447532]
[1749927884786,0.38392,105010.0,105000.0,0.28374651]
[1749927885130,0.04392,105010.0,105000.0,0.28374651]
[1749927886931,0.04392,105010.0,105000.0,0.37998827]
[1749927887463,0.04592,105010.0,105000.0,0.37998827]
[1749927887667,0.004,105010.0,105000.0,0.37998827]
[1749927888943,0.004,105010.0,105000.0,0.45560621]
[1749927889870,0.004,105010.0,105000.0,0.48422021]